bitfinex/quotes_BTCUSD_20240721
["timestamp","ask_amount","ask_price","bid_price","bid_amount"]
[1721538981741,0.002,67149.0,67147.0,2.13186801]
[1721538981965,0.002,67149.0,67147.0,1.53616101]
[1721538982176,0.002,67149.0,67147.0,1.39346101]
[1721538983454,0.002,67149.0,67147.0,1.51260201]
[1721538983666,0.002,67149.0,67147.0,1.65530201]
[1721538983871,0.002,67149.0,67147.0,2.13186801]
[1721538984558,0.002,67149.0,67148.0,0.933976]
[1721538984762,0.01036,67159.0,67148.0,0.933976]
[1721538984763,0.01036,67159.0,67158.0,0.59561]
[1721538984964,0.01036,67159.0,67158.0,2.07111]
[1721538985176,0.01036,67159.0,67158.0,2.20101271]
[1721538985397,0.01036,67159.0,67158.0,2.43925671]
[1721538985602,0.01036,67159.0,67158.0,2.20101271]
[1721538986855,0.01036,67159.0,67158.0,2.21301271]
[1721538987687,0.01036,67159.0,67158.0,2.21300763]
[1721538987861,0.01036,67159.0,67158.0,2.46325163]
[1721538988083,0.01036,67159.0,67158.0,2.22500763]
[1721538988311,0.01036,67159.0,67158.0,2.46325163]
[1721538988552,0.01036,67159.0,67158.0,2.22500763]
[1721538988651,0.01036,67159.0,67158.0,2.66763337]
[1721538988851,0.01036,67159.0,67158.0,2.67645741]
[1721538989710,0.01036,67159.0,67158.0,2.70245741]
[1721538989950,0.01036,67159.0,67158.0,2.71445741]
[1721538990632,0.01036,67159.0,67158.0,2.71444428]
[1721538990823,0.01036,67159.0,67158.0,2.70562024]
[1721538991020,0.01036,67159.0,67158.0,2.71962024]
[1721538991424,0.01036,67159.0,67158.0,2.81662024]
[1721538991622,0.01036,67159.0,67158.0,3.25430154]
[1721538991827,0.01036,67159.0,67158.0,3.26830154]
[1721538992258,0.01036,67159.0,67158.0,3.25430154]
[1721538992647,0.01036,67159.0,67158.0,3.26830154]
[1721538992861,0.01036,67159.0,67158.0,2.88735754]
[1721538993172,0.01036,67159.0,67158.0,2.95705754]
[1721538993377,0.01036,67159.0,67158.0,3.00705754]
[1721538993800,0.01036,67159.0,67158.0,3.00705237]
[1721538994396,0.01036,67159.0,67158.0,2.99488662]
[1721538994606,0.01036,67159.0,67158.0,2.98088662]
[1721538994840,0.01036,67159.0,67158.0,2.99488662]
[1721538995010,0.01036,67159.0,67158.0,3.00888662]
[1721538995211,0.01036,67159.0,67158.0,2.99488662]
[1721538995614,0.01036,67159.0,67158.0,3.03188662]
[1721538996053,0.01036,67159.0,67158.0,3.01788662]
[1721538996386,0.01036,67159.0,67158.0,3.03188662]
[1721538996934,0.01036,67159.0,67158.0,3.03188301]
[1721538998734,0.01036,67159.0,67158.0,3.03188299]
[1721539000041,0.01036,67159.0,67158.0,3.27012699]
[1721539000441,0.01036,67159.0,67158.0,2.96218299]
[1721539000642,0.01036,67159.0,67158.0,3.27012699]
[1721539001640,0.01036,67159.0,67158.0,3.00388299]
[1721539001866,0.01036,67159.0,67158.0,3.03188299]
[1721539002244,0.01036,67159.0,67158.0,3.27012699]
[1721539003404,0.01036,67159.0,67158.0,3.27011457]
[1721539003766,0.01036,67159.0,67158.0,3.01787057]
[1721539003967,0.01036,67159.0,67158.0,3.03187057]
[1721539004566,0.01036,67159.0,67158.0,3.01787057]
[1721539004768,0.01036,67159.0,67158.0,3.03187057]
[1721539004950,0.01036,67159.0,67158.0,3.01787057]
[1721539005508,0.01036,67159.0,67158.0,2.82517057]
[1721539005715,0.01036,67159.0,67158.0,2.97287057]
[1721539005942,0.01036,67159.0,67158.0,2.14970083]
[1721539006143,0.01036,67159.0,67158.0,2.35994483]
[1721539006347,0.01036,67159.0,67158.0,2.13570083]
[1721539006573,0.01036,67159.0,67158.0,1.7126545]
[1721539006772,0.01036,67159.0,67158.0,2.02174943]
[1721539006997,0.01036,67159.0,67158.0,2.00775413]
[1721539007149,0.01036,67159.0,67158.0,2.02175413]
[1721539007593,0.01036,67159.0,67158.0,2.00775413]
[1721539007999,0.01036,67159.0,67158.0,2.03172276]
[1721539008197,0.01036,67159.0,67158.0,1.94802276]
[1721539008359,0.01036,67159.0,67158.0,1.96002276]
[1721539008991,0.01036,67159.0,67158.0,1.72177876]
[1721539009752,0.01036,67159.0,67158.0,1.72178348]
[1721539012831,0.01036,67159.0,67158.0,1.48105112]
[1721539013079,0.07256,67159.0,67158.0,1.60469286]
[1721539013314,0.01036,67159.0,67158.0,1.72381486]
[1721539015343,0.12948,67159.0,67158.0,1.60469286]
[1721539015668,0.19168,67159.0,67158.0,1.60469286]
[1721539015671,0.8196314,67159.0,67158.0,1.41923024]
[1721539015882,0.9826,67159.0,67158.0,1.2955885]
[1721539016108,1.13698174,67159.0,67158.0,1.41925758]
[1721539016343,1.13698174,67159.0,67158.0,1.2955885]
[1721539016553,1.13698174,67159.0,67158.0,1.41926314]
[1721539016774,1.13698174,67159.0,67158.0,1.39526314]
[1721539017192,1.13698174,67159.0,67158.0,1.39626314]
[1721539017407,1.13698174,67159.0,67158.0,1.2715885]
[1721539017813,1.13698174,67159.0,67158.0,1.2725885]
[1721539018022,1.13698174,67159.0,67158.0,1.39626256]
[1721539018471,1.13698174,67159.0,67158.0,1.2715885]
[1721539018847,1.13698174,67159.0,67158.0,1.2735885]
[1721539019048,1.13698174,67159.0,67158.0,1.2725885]
[1721539019478,1.13698174,67159.0,67158.0,1.2735885]
[1721539025621,0.89874174,67159.0,67158.0,1.2735885]
[1721539025822,0.89874174,67159.0,67158.0,1.2655]
[1721539026219,0.89874174,67159.0,67158.0,1.27358705]
[1721539028960,0.90618174,67159.0,67158.0,1.27358705]
[1721539031283,0.90618174,67159.0,67158.0,1.27258705]
[1721539031742,0.90618174,67159.0,67158.0,1.27158705]
[1721539031971,0.90618174,67159.0,67158.0,1.27258705]
[1721539035963,0.0178,67159.0,67158.0,1.58496786]
[1721539036110,0.0178,67159.0,67158.0,1.82321186]
[1721539037332,0.0178,67159.0,67158.0,1.69955305]
[1721539037639,0.0178,67159.0,67158.0,1.82320767]
[1721539037822,0.0178,67159.0,67158.0,1.96530536]
[1721539038429,0.0178,67159.0,67158.0,2.20354936]
[1721539039041,0.0178,67159.0,67158.0,2.6961751]
[1721539039251,0.0178,67159.0,67158.0,2.88162408]
[1721539040083,0.0178,67159.0,67158.0,2.98582408]
[1721539040301,0.0178,67159.0,67158.0,2.98579524]
[1721539041133,0.0178,67159.0,67158.0,2.99979524]
[1721539041346,0.0178,67159.0,67158.0,2.98579524]
[1721539041756,0.0178,67159.0,67158.0,2.99979524]
[1721539041980,0.0178,67159.0,67158.0,3.23503924]
[1721539042578,0.0178,67159.0,67158.0,3.22403924]
[1721539043027,0.0178,67159.0,67158.0,3.23803924]
[1721539043208,0.0178,67159.0,67158.0,3.33803924]
[1721539043429,0.0178,67159.0,67158.0,3.33802127]
[1721539043611,0.0178,67159.0,67158.0,3.36102127]
[1721539044275,0.0178,67159.0,67158.0,3.34702127]
[1721539044488,0.0178,67159.0,67158.0,3.37502127]
[1721539044659,0.0178,67159.0,67158.0,3.36102127]
[1721539045247,0.0178,67159.0,67158.0,3.31102127]
[1721539045468,0.0178,67159.0,67158.0,3.28802127]
[1721539045667,0.0178,67159.0,67158.0,3.30202127]
[1721539045878,0.0178,67159.0,67158.0,3.27402127]
[1721539046520,0.0178,67159.0,67158.0,3.28802199]
[1721539047185,0.0178,67159.0,67158.0,3.30202199]
[1721539047591,0.0178,67159.0,67158.0,3.27402199]
[1721539048020,0.0178,67159.0,67158.0,3.30202199]
[1721539048219,0.0178,67159.0,67158.0,3.28802199]
[1721539048648,0.0178,67159.0,67158.0,3.35202199]
[1721539048848,0.0178,67159.0,67158.0,3.28802199]
[1721539049062,0.0178,67159.0,67158.0,3.27402199]
[1721539049270,0.0178,67159.0,67158.0,3.33802199]
[1721539049726,0.0178,67159.0,67158.0,3.33802474]
[1721539050199,0.0178,67159.0,67158.0,3.32402474]
[1721539050618,0.0178,67159.0,67158.0,3.33802474]
[1721539050846,0.0178,67159.0,67158.0,3.28802474]
[1721539051052,0.0178,67159.0,67158.0,3.27402474]
[1721539051468,0.0178,67159.0,67158.0,3.28802474]
[1721539051731,0.0178,67159.0,67158.0,3.30202474]
[1721539051952,0.0178,67159.0,67158.0,3.35202474]
[1721539052184,0.0178,67159.0,67158.0,3.33802474]
[1721539052385,0.0178,67159.0,67158.0,3.35202474]
[1721539053032,0.0178,67159.0,67158.0,3.30202474]
[1721539053242,0.0178,67159.0,67158.0,3.28802474]
[1721539053670,0.0178,67159.0,67158.0,3.27402474]
[1721539054084,0.0178,67159.0,67158.0,3.28802474]
[1721539054296,0.0178,67159.0,67158.0,3.33802474]
[1721539054519,0.0178,67159.0,67158.0,3.32402474]
[1721539054778,0.0178,67159.0,67158.0,3.37502474]
[1721539055182,0.0178,67159.0,67158.0,3.36102474]
[1721539055439,0.0178,67159.0,67158.0,3.34702474]
[1721539055655,0.0178,67159.0,67158.0,3.36102474]
[1721539055907,0.0178,67159.0,67158.0,3.06596679]
[1721539056143,0.0178,67159.0,67158.0,3.375013]
[1721539056390,0.0178,67159.0,67158.0,3.389013]
[1721539056899,0.0178,67159.0,67158.0,3.375013]
[1721539057341,0.0178,67159.0,67158.0,3.389013]
[1721539058361,0.0178,67159.0,67158.0,3.316013]
[1721539058999,0.0178,67159.0,67158.0,3.00696679]
[1721539059225,0.0178,67159.0,67158.0,2.97896679]
[1721539059452,0.0178,67159.0,67158.0,3.28801497]
[1721539059632,0.0178,67159.0,67158.0,2.99296679]
[1721539060197,0.0178,67159.0,67158.0,3.30201496]
[1721539060391,0.0178,67159.0,67158.0,3.28801496]
[1721539060597,0.0178,67159.0,67158.0,3.30201496]
[1721539062102,0.0178,67159.0,67158.0,3.19771496]
[1721539062515,0.0178,67159.0,67158.0,2.88997096]
[1721539062723,0.0178,67159.0,67158.0,2.83585394]
[1721539062920,0.0178,67159.0,67158.0,2.9594747]
[1721539063215,0.0178,67159.0,67158.0,2.65042279]
[1721539063467,0.0178,67159.0,67158.0,2.9594814]
[1721539064222,0.0178,67159.0,67158.0,2.9454814]
[1721539064446,0.0178,67159.0,67158.0,2.9594814]
[1721539064653,0.0178,67159.0,67158.0,2.9454814]
[1721539064854,0.0178,67159.0,67158.0,2.9954814]
[1721539065049,0.0178,67159.0,67158.0,2.9594814]
[1721539065470,0.0178,67159.0,67158.0,2.9604054]
[1721539066507,0.0178,67159.0,67158.0,2.65134679]
[1721539066718,0.0178,67159.0,67158.0,2.96040589]
[1721539067439,0.0178,67159.0,67158.0,3.02221771]
[1721539068337,0.0178,67159.0,67158.0,3.17674727]
[1721539069030,0.0178,67159.0,67158.0,3.02221771]
[1721539069268,0.0178,67159.0,67158.0,3.22674793]
[1721539069709,0.0178,67159.0,67158.0,3.16493611]
[1721539069917,0.0178,67159.0,67158.0,3.22674608]
[1721539070143,0.0178,67159.0,67158.0,2.91768698]
[1721539070352,0.0178,67159.0,67158.0,3.22673923]
[1721539070564,0.0178,67159.0,67158.0,3.21273923]
[1721539071017,0.0178,67159.0,67158.0,3.22673923]
[1721539071260,0.0178,67159.0,67158.0,3.21273923]
[1721539071491,0.0178,67159.0,67158.0,3.22673923]
[1721539072960,0.0178,67159.0,67158.0,3.2267371]
[1721539076132,0.0128,67159.0,67158.0,3.2267371]
[1721539078683,0.0128,67159.0,67158.0,3.2127371]
[1721539078889,0.0128,67159.0,67158.0,3.2267371]
[1721539079329,0.0128,67159.0,67158.0,3.27126397]
[1721539079522,0.0128,67159.0,67158.0,3.22673511]
[1721539079738,0.0128,67159.0,67158.0,3.19873511]
[1721539079942,0.0128,67159.0,67158.0,3.45097911]
[1721539080171,0.0128,67159.0,67158.0,3.8479349]
[1721539080397,0.0128,67159.0,67158.0,3.8339349]
[1721539080815,0.0128,67159.0,67158.0,3.8479349]
[1721539081024,0.0128,67159.0,67158.0,3.8619349]
[1721539081220,0.0128,67159.0,67158.0,3.88422287]
[1721539081700,0.0128,67159.0,67158.0,4.37807099]
[1721539081906,0.0128,67159.0,67158.0,4.37803319]
[1721539082382,0.0128,67159.0,67158.0,4.36400926]
[1721539082799,0.0128,67159.0,67158.0,4.37800926]
[1721539083450,0.0128,67159.0,67158.0,4.36400926]
[1721539083697,0.0128,67159.0,67158.0,4.37800926]
[1721539084100,0.0128,67159.0,67158.0,4.36400926]
[1721539084410,0.0128,67159.0,67158.0,4.39200926]
[1721539084825,0.0128,67159.0,67158.0,4.39202295]
[1721539085041,0.0128,67159.0,67158.0,4.78746695]
[1721539085253,0.0128,67159.0,67158.0,4.92144947]
[1721539086097,0.0128,67159.0,67158.0,4.89344947]
[1721539086313,0.0128,67159.0,67158.0,4.89345444]
[1721539086784,0.0128,67159.0,67158.0,4.75946695]
[1721539087016,0.0128,67159.0,67158.0,4.74546695]
[1721539087244,0.0128,67159.0,67158.0,4.89344335]
[1721539087716,0.0128,67159.0,67158.0,5.00944335]
[1721539088117,0.0128,67159.0,67158.0,3.97521038]
[1721539088316,0.0128,67159.0,67158.0,4.10918627]
[1721539088761,0.0128,67159.0,67158.0,4.34743027]
[1721539089626,0.0128,67159.0,67158.0,4.10918627]
[1721539090221,0.0128,67159.0,67158.0,3.97521038]
[1721539091356,0.0128,67159.0,67158.0,3.27432101]
[1721539091551,0.0128,67159.0,67158.0,3.97521336]
[1721539091756,0.0128,67159.0,67158.0,4.52521336]
[1721539094587,0.0128,67159.0,67158.0,4.21619439]
[1721539094791,0.0128,67159.0,67158.0,4.52521471]
[1721539096892,0.0128,67159.0,67158.0,4.29851471]
[1721539097116,0.0128,67159.0,67158.0,4.36801471]
[1721539097801,0.0128,67159.0,67158.0,4.36802678]
[1721539097988,0.0128,67159.0,67158.0,4.22492678]
[1721539100776,0.0128,67159.0,67158.0,4.22493361]
[1721539102268,0.0128,67159.0,67158.0,4.07040339]
[1721539102494,0.0128,67159.0,67158.0,4.22491859]
[1721539103895,0.0128,67159.0,67158.0,3.83303639]
[1721539104118,0.0128,67159.0,67158.0,4.22492255]
[1721539104417,0.0128,67159.0,67158.0,4.17492255]
[1721539104619,0.00691414,67159.0,67158.0,4.17492255]
[1721539105084,0.00691414,67159.0,67158.0,3.36367855]
[1721539105545,0.00691414,67159.0,67158.0,3.52528661]
[1721539105773,0.00837,67163.0,67162.0,0.883801]
[1721539106007,0.00837,67163.0,67162.0,1.97556419]
[1721539106233,0.00837,67163.0,67162.0,1.98383225]
[1721539106506,0.00837,67163.0,67162.0,3.24733225]
[1721539106936,0.00837,67163.0,67162.0,2.85028728]
[1721539107177,0.00837,67163.0,67162.0,2.87831273]
[1721539107415,0.00837,67163.0,67162.0,2.81650241]
[1721539107895,0.00837,67163.0,67162.0,2.87831298]
[1721539108134,0.00837,67163.0,67162.0,2.86114981]
[1721539108834,0.00837,67163.0,67162.0,2.88713995]
[1721539109115,0.00837,67163.0,67162.0,2.88219208]
[1721539109633,0.00837,67163.0,67162.0,2.88219125]
[1721539109903,0.01527,67163.0,67162.0,2.86502738]
[1721539110146,0.01527,67163.0,67162.0,2.81155454]
[1721539110388,0.01527,67163.0,67162.0,2.85620637]
[1721539112390,0.01527,67163.0,67162.0,2.78670637]
[1721539112391,0.09317,67163.0,67162.0,2.78670637]
[1721539112601,0.09317,67163.0,67162.0,2.85620637]
[1721539113106,0.09317,67163.0,67162.0,2.75620637]
[1721539113337,0.09317,67163.0,67162.0,2.4471509]
[1721539113580,0.09317,67163.0,67162.0,2.75620893]
[1721539114052,0.08817,67163.0,67162.0,2.75620893]
[1721539114970,0.08817,67163.0,67162.0,2.71155856]
[1721539115435,0.08817,67163.0,67162.0,2.75620998]
[1721539115896,0.14827,67163.0,67162.0,2.75620998]
[1721539116623,0.14827,67163.0,67162.0,2.75621295]
[1721539116857,0.14827,67163.0,67162.0,2.71156068]
[1721539117102,0.27233087,67163.0,67162.0,1.60882581]
[1721539117350,0.51055687,67163.0,67162.0,1.42339116]
[1721539118038,0.51055687,67163.0,67162.0,1.40939116]
[1721539118283,0.51055687,67163.0,67162.0,1.42239116]
[1721539118902,0.51055687,67163.0,67162.0,1.40839116]
[1721539119320,0.51055687,67163.0,67162.0,1.42239116]
[1721539119536,0.51055687,67163.0,67162.0,1.39541999]
[1721539119958,0.51055687,67163.0,67162.0,1.41341999]
[1721539120165,0.51055687,67163.0,67162.0,1.28976806]
[1721539120404,0.51055687,67163.0,67162.0,1.41341999]
[1721539123105,0.27233087,67163.0,67162.0,1.41341999]
[1721539124418,0.14827,67163.0,67162.0,1.88987799]
[1721539124646,0.14827,67163.0,67162.0,1.77076299]
[1721539124834,0.14827,67163.0,67162.0,2.00899199]
[1721539127307,0.14827,67163.0,67162.0,1.77076299]
[1721539127517,0.14827,67163.0,67162.0,1.41341999]
[1721539129036,0.14827,67163.0,67162.0,1.28976806]
[1721539129250,0.14827,67163.0,67162.0,1.41341967]
[1721539129886,0.14827,67163.0,67162.0,1.41434367]
[1721539130505,0.14827,67163.0,67162.0,1.53345767]
[1721539131345,0.14827,67163.0,67162.0,1.60295767]
[1721539131565,0.14827,67163.0,67162.0,1.84118667]
[1721539135507,0.14827,67163.0,67162.0,1.84117433]
[1721539136348,0.14827,67163.0,67162.0,1.84117623]
[1721539142466,0.14827,67163.0,67162.0,1.77167623]
[1721539142890,0.14827,67163.0,67162.0,2.00990523]
[1721539144231,0.14827,67163.0,67162.0,2.0099052]
[1721539144657,0.08817,67163.0,67162.0,2.0099052]
[1721539144862,0.08837,67163.0,67162.0,2.0099052]
[1721539145957,0.08837,67163.0,67162.0,2.0009052]
[1721539146836,0.08837,67163.0,67162.0,2.0099052]
[1721539148431,0.08837,67163.0,67162.0,2.0009052]
[1721539148849,0.08837,67163.0,67162.0,2.0099052]
[1721539149255,0.08837,67163.0,67162.0,1.9919052]
[1721539149493,0.08837,67163.0,67162.0,2.0099052]
[1721539149940,0.08837,67163.0,67162.0,1.88626406]
[1721539150198,0.08837,67163.0,67162.0,2.00990416]
[1721539150680,0.08837,67163.0,67162.0,1.88626406]
[1721539150938,0.08837,67163.0,67162.0,2.00990464]
[1721539154583,0.08837,67163.0,67162.0,2.24750962]
[1721539155012,0.08837,67163.0,67162.0,2.00990464]
[1721539155223,0.08837,67163.0,67162.0,2.24750947]
[1721539155442,0.08837,67163.0,67162.0,2.00990464]
[1721539157066,0.08837,67163.0,67162.0,2.00990481]
[1721539159137,0.01027,67163.0,67162.0,2.38423381]
[1721539159377,0.01027,67163.0,67162.0,3.01230396]
[1721539159830,0.01027,67163.0,67162.0,3.05690772]
[1721539160306,0.01027,67163.0,67162.0,2.86241493]
[1721539160524,0.01027,67163.0,67162.0,3.10965189]
[1721539160765,0.01027,67163.0,67162.0,3.09790106]
[1721539161013,0.01027,67163.0,67162.0,3.09390106]
[1721539161265,0.01027,67163.0,67162.0,3.10790106]
[1721539161520,0.01027,67163.0,67162.0,3.09790106]
[1721539161782,0.01027,67163.0,67162.0,3.13793421]
[1721539162484,0.01027,67163.0,67162.0,3.07612577]
[1721539163402,0.01027,67163.0,67162.0,3.20480494]
[1721539163606,0.01027,67163.0,67162.0,3.13793311]
[1721539164225,0.01027,67163.0,67162.0,3.20480494]
[1721539164435,0.01027,67163.0,67162.0,3.19080494]
[1721539164609,0.01027,67163.0,67162.0,3.07612577]
[1721539164845,0.01027,67163.0,67162.0,3.13793263]
[1721539165266,0.01027,67163.0,67162.0,3.07393263]
[1721539165472,0.01027,67163.0,67162.0,3.0706821]
[1721539165713,0.01027,67163.0,67162.0,2.49691923]
[1721539165932,0.01027,67163.0,67162.0,2.44353926]
[1721539166142,0.01027,67163.0,67162.0,2.49903926]
[1721539166323,0.01027,67163.0,67162.0,2.48503926]
[1721539166604,0.01027,67163.0,67162.0,2.49904523]
[1721539167076,0.01027,67163.0,67162.0,2.48504523]
[1721539167308,0.01027,67163.0,67162.0,2.49904523]
[1721539167550,0.01027,67163.0,67162.0,2.51304523]
[1721539168029,0.01027,67163.0,67162.0,2.49904523]
[1721539168494,0.01027,67163.0,67162.0,2.51304523]
[1721539169760,0.01027,67163.0,67162.0,2.51304728]
[1721539169975,0.01027,67163.0,67162.0,2.4083748]
[1721539170205,0.01027,67163.0,67162.0,2.66742902]
[1721539170863,0.01027,67163.0,67162.0,2.73222902]
[1721539171108,0.01027,67163.0,67162.0,2.81272902]
[1721539172021,0.01027,67163.0,67162.0,2.79872902]
[1721539172234,0.01027,67163.0,67162.0,2.81272902]
[1721539172691,0.01027,67163.0,67162.0,2.72922902]
[1721539172915,0.01027,67163.0,67162.0,2.66741672]
[1721539174929,0.01027,67163.0,67162.0,2.51303498]
[1721539175987,0.01027,67163.0,67162.0,2.51303564]
[1721539178516,0.01027,67163.0,67162.0,2.85831738]
[1721539179163,0.01027,67163.0,67162.0,2.8583142]
[1721539179384,0.01027,67163.0,67162.0,3.14159533]
[1721539179605,0.01027,67163.0,67162.0,3.70659533]
[1721539179821,0.01027,67163.0,67162.0,3.75116167]
[1721539180033,0.01027,67163.0,67162.0,3.76516167]
[1721539180454,0.01027,67163.0,67162.0,3.18116167]
[1721539180723,0.01027,67163.0,67162.0,3.18115758]
[1721539180913,0.01027,67163.0,67162.0,3.20915758]
[1721539181127,0.01027,67163.0,67162.0,3.88915758]
[1721539181339,0.01027,67163.0,67162.0,3.87515758]
[1721539181601,0.01027,67163.0,67162.0,3.83058984]
[1721539181812,0.01027,67163.0,67162.0,3.84458984]
[1721539182458,0.01027,67163.0,67162.0,3.90638914]
[1721539182888,0.01027,67163.0,67162.0,3.90638785]
[1721539183524,0.01027,67163.0,67162.0,2.80060672]
[1721539183734,0.01027,67163.0,67162.0,2.87010672]
[1721539183942,0.01027,67163.0,67162.0,2.91467766]
[1721539184370,0.01027,67163.0,67162.0,2.90067766]
[1721539184606,0.01027,67163.0,67162.0,2.88667766]
[1721539184859,0.01027,67163.0,67162.0,2.90067766]
[1721539185270,0.01027,67163.0,67162.0,2.91467766]
[1721539185525,0.01027,67163.0,67162.0,2.91468252]
[1721539185754,0.01027,67163.0,67162.0,2.96468252]
[1721539186410,0.01027,67163.0,67162.0,3.11919785]
[1721539186850,0.01027,67163.0,67162.0,3.40247898]
[1721539187074,0.01027,67163.0,67162.0,4.12790804]
[1721539187726,0.01027,67163.0,67162.0,3.34390804]
[1721539188609,0.01027,67163.0,67162.0,3.3299006]
[1721539188821,0.01027,67163.0,67162.0,3.3439006]
[1721539189505,0.01027,67163.0,67162.0,3.3579006]
[1721539190151,0.01027,67163.0,67162.0,3.3719006]
[1721539191864,0.01027,67163.0,67162.0,3.06287615]
[1721539192083,0.01027,67163.0,67162.0,3.3719006]
[1721539192312,0.01027,67163.0,67162.0,3.3219006]
[1721539192525,0.01027,67163.0,67162.0,3.1336716]
[1721539192952,0.01027,67163.0,67162.0,3.3719006]
[1721539193678,0.01027,67163.0,67162.0,3.43877565]
[1721539193892,0.01027,67163.0,67162.0,3.39372352]
[1721539194101,0.01027,67163.0,67162.0,3.43877565]
[1721539194749,0.01027,67163.0,67162.0,3.39372352]
[1721539194973,0.01027,67163.0,67162.0,3.3319302]
[1721539195187,0.01027,67163.0,67162.0,3.43878734]
[1721539195615,0.01027,67163.0,67162.0,3.76886174]
[1721539196684,0.01027,67163.0,67162.0,3.34468061]
[1721539197535,0.01027,67163.0,67162.0,3.27779462]
[1721539197747,0.01027,67163.0,67162.0,3.24979462]
[1721539197961,0.01027,67163.0,67162.0,3.30269713]
[1721539198174,0.01027,67163.0,67162.0,2.56289013]
[1721539198416,0.01027,67163.0,67162.0,3.33069722]
[1721539198629,0.01027,67163.0,67162.0,3.24979471]
[1721539199039,0.01027,67163.0,67162.0,3.26379471]
[1721539199480,0.01027,67163.0,67162.0,3.24979471]
[1721539199693,0.01027,67163.0,67162.0,3.26379471]
[1721539200650,0.01027,67163.0,67162.0,3.35299806]
[1721539200888,0.01027,67163.0,67162.0,2.98220171]
[1721539201141,0.01027,67163.0,67162.0,3.35303174]
[1721539201655,0.01027,67163.0,67162.0,3.33903174]
[1721539202131,0.01027,67163.0,67162.0,3.35303174]
[1721539202364,0.01027,67163.0,67162.0,3.33903174]
[1721539202589,0.01027,67163.0,67162.0,3.2497945]
[1721539202845,0.01027,67163.0,67162.0,3.2637945]
[1721539203768,0.01027,67163.0,67162.0,3.3754145]
[1721539204455,0.01027,67163.0,67162.0,3.26379463]
[1721539205968,0.00769,67163.0,67162.0,3.26379463]
[1721539206180,0.00769,67163.0,67162.0,4.22207576]
[1721539206392,0.00769,67163.0,67162.0,4.33507576]
[1721539206864,0.00769,67163.0,67162.0,4.27320828]
[1721539207042,0.00769,67163.0,67162.0,4.33500725]
[1721539207250,0.00769,67163.0,67162.0,4.32100725]
[1721539207781,0.00769,67163.0,67162.0,4.46894579]
[1721539208206,0.00769,67163.0,67162.0,4.45494579]
[1721539208422,0.00769,67163.0,67162.0,4.46894579]
[1721539208637,0.00769,67163.0,67162.0,4.45494579]
[1721539208812,0.00769,67163.0,67162.0,4.46894579]
[1721539209471,0.00769,67163.0,67162.0,4.48294579]
[1721539209681,0.00769,67163.0,67162.0,3.82900725]
[1721539212240,0.00769,67163.0,67162.0,3.54645512]
[1721539212461,0.00769,67163.0,67162.0,3.32772612]
[1721539212688,0.08559,67163.0,67162.0,3.07321079]
[1721539212904,0.08559,67163.0,67162.0,3.16251111]
[1721539213093,0.08559,67163.0,67162.0,2.68141838]
[1721539213346,0.08559,67163.0,67162.0,2.45753664]
[1721539213561,0.14559,67163.0,67162.0,2.52703664]
[1721539214665,0.14559,67163.0,67162.0,2.51303664]
[1721539215060,0.14559,67163.0,67162.0,2.52703664]
[1721539216161,0.14559,67163.0,67162.0,2.49904368]
[1721539216585,0.14559,67163.0,67162.0,2.3276133]
[1721539216791,0.14559,67163.0,67162.0,2.51304367]
[1721539217884,0.14559,67163.0,67162.0,2.55770012]
[1721539218302,0.14559,67163.0,67162.0,2.5576982]
[1721539219184,0.14559,67163.0,67162.0,2.20399306]
[1721539219426,0.14559,67163.0,67162.0,2.55769952]
[1721539219963,0.14172,67163.0,67162.0,2.51304634]
[1721539220443,0.14172,67163.0,67162.0,2.91012697]
[1721539220679,0.14172,67163.0,67162.0,2.58002611]
[1721539220917,0.1379,67163.0,67162.0,2.58002611]
[1721539222401,0.1379,67163.0,67162.0,2.5800164]
[1721539222609,0.01037,67169.0,67168.0,0.357312]
[1721539222814,0.01037,67169.0,67168.0,1.05124226]
[1721539223040,0.14827,67169.0,67168.0,1.05822248]
[1721539223991,0.14827,67169.0,67168.0,1.07222248]
[1721539224984,0.14827,67169.0,67168.0,1.08622248]
[1721539225221,0.15211,67169.0,67168.0,1.08622248]
[1721539225675,0.15211,67169.0,67168.0,2.34972224]
[1721539228724,0.15211,67169.0,67168.0,2.04067501]
[1721539228931,0.15211,67169.0,67168.0,2.34971901]
[1721539229145,0.01421,67169.0,67168.0,2.04067501]
[1721539229373,0.01421,67169.0,67168.0,2.34971901]
[1721539229613,0.01421,67169.0,67168.0,3.18221468]
[1721539229853,0.01421,67169.0,67168.0,3.46763037]
[1721539230034,0.01421,67169.0,67168.0,3.55692198]
[1721539230915,0.01421,67169.0,67168.0,3.52892198]
[1721539231056,0.01421,67169.0,67168.0,3.55692198]
[1721539231497,0.01421,67169.0,67168.0,3.63472198]
[1721539231716,0.01421,67169.0,67168.0,3.62072198]
[1721539231956,0.01421,67169.0,67168.0,3.63463768]
[1721539233432,0.01421,67169.0,67168.0,3.62063768]
[1721539233642,0.01421,67169.0,67168.0,3.63463768]
[1721539234061,0.01421,67169.0,67168.0,3.62063768]
[1721539234263,0.01421,67169.0,67168.0,3.63463768]
[1721539234473,0.01421,67169.0,67168.0,3.62063768]
[1721539235105,0.01421,67169.0,67168.0,3.32561257]
[1721539235311,0.01421,67169.0,67168.0,3.69987593]
[1721539235518,0.01421,67169.0,67168.0,3.88910824]
[1721539235700,0.01421,67169.0,67168.0,3.78587593]
[1721539235937,0.01421,67169.0,67168.0,4.48987593]
[1721539236763,0.01421,67169.0,67168.0,4.47587593]
[1721539237192,0.01421,67169.0,67168.0,4.48987593]
[1721539237385,0.01421,67169.0,67168.0,4.47587593]
[1721539237592,0.01421,67169.0,67168.0,4.57909572]
[1721539237996,0.01421,67169.0,67168.0,4.47587593]
[1721539238236,0.01421,67169.0,67168.0,4.47586964]
[1721539238409,0.01421,67169.0,67168.0,4.5790863]
[1721539239445,0.01421,67169.0,67168.0,3.8890863]
[1721539239650,0.01421,67169.0,67168.0,4.5790863]
[1721539240890,0.01421,67169.0,67168.0,4.57907531]
[1721539241313,0.00035701,67175.0,67174.0,0.92870613]
[1721539241523,0.00035701,67175.0,67174.0,2.84127939]
[1721539241733,0.00035701,67175.0,67174.0,3.30301896]
[1721539241942,0.00035701,67175.0,67174.0,3.32139069]
[1721539242156,0.00035701,67175.0,67174.0,3.78484711]
[1721539242363,0.00035701,67175.0,67174.0,3.54117849]
[1721539243023,0.00035701,67175.0,67174.0,3.55517849]